[Event "M. Gvozdenovica Memorial 2019"]
[Site "Valjevo"]
[Date "2019.10.11"]
[Round "8.4"]
[White "Blagojevic, Dragisa"]
[Black "Stojanovic, Dalibor"]
[Result "1/2-1/2"]
[ECO "A05"]
[WhiteElo "2500"]
[BlackElo "2501"]
[Annotator "ChessBase"]
[PlyCount "30"]
[EventDate "2019.10.08"]
[EventCountry "SRB"]
[SourceTitle "playchess.com"]
[Source "ChessBase"]
[SourceQuality "1"]
[TimeControl "5400+30"]

1. Nf3 {[%emt 0:00:00]} Nf6 {[%emt 0:00:00]} 2. g3 {[%emt 0:00:00]} g6 {[%emt 0:00:00]} 3. b3 {[%emt 0:00:00]} Bg7 {[%emt 0:00:05]} 4. Bb2 {[%emt 0:00:00]} O-O {[%emt 0:00:14]} 5. Bg2 {[%emt 0:00:04]} d6 {[%emt 0:00:14]} 6. d4 {[%emt 0:00:09]} c5 {[%emt 0:00:16]} 7. c4 {[%emt 0:00:13]} Nc6 {[%emt 0:00:18]} 8. O-O {[%emt 0:00:19]} cxd4 {[%emt 0:00:04]} 9. Nxd4 {[%emt 0:00:08]} Bd7 {[%emt 0:00:10]} 10. Nc3 {[%emt 0:00:10]} Nxd4 {[%emt 0:00:06]} 11. Qxd4 {[%emt 0:00:06]} Bc6 {[%emt 0:00:03]} 12. Nd5 {[%emt 0:00:18]} Ne8 {[%emt 0:00:07]} 13. Qd2 {[%emt 0:00:08]} Bxb2 {[%emt 0:00:04]} 14. Qxb2 {[%emt 0:00:11]} Bxd5 {[%emt 0:00:02]} 15. Bxd5 {[%emt 0:00:19]} Qb6 {[%emt 0:00:02]} 1/2-1/2

[Event "M. Gvozdenovica Memorial 2019"]
[Site "Valjevo"]
[Date "2019.10.11"]
[Round "8.5"]
[White "Pezelj, Novak"]
[Black "Budisavljevic, Luka"]
[Result "1/2-1/2"]
[ECO "A06"]
[WhiteElo "2479"]
[BlackElo "2432"]
[Annotator "ChessBase"]
[PlyCount "36"]
[EventDate "2019.10.08"]
[EventCountry "SRB"]
[SourceTitle "playchess.com"]
[Source "ChessBase"]
[SourceQuality "1"]
[TimeControl "5400+30"]

1. Nf3 {[%emt 0:00:00]} d5 {[%emt 0:01:13]} 2. g3 {[%emt 0:02:20]} Bg4 {[%emt 0:00:41]} 3. Bg2 {[%emt 0:00:33]} c6 {[%emt 0:00:19]} 4. O-O {[%emt 0:02:18]} e6 {[%emt 0:00:31]} 5. d3 {[%emt 0:00:34]} Bd6 {[%emt 0:00:13]} 6. e4 {[%emt 0:00:18]} Ne7 {[%emt 0:01:10]} 7. b3 {[%emt 0:05:42]} O-O {[%emt 0:00:42]} 8. Bb2 {[%emt 0:00:05]} Nd7 {[%emt 0:00:45]} 9. Nbd2 {[%emt 0:01:11]} a5 {[%emt 0:00:16]} 10. a3 {[%emt 0:00:43]} b5 {[%emt 0:00:49]} 11. h3 {[%emt 0:07:28]} Bh5 {[%emt 0:00:10]} 12. Qe1 {[%emt 0:00:31]} Qb6 {[%emt 0:09:33]} 13. Kh1 {[%emt 0:00:58]} Rac8 {[%emt 0:02:35]} 14. Rb1 {[%emt 0:11:53]} Bb8 {[%emt 0:07:55]} 15. Nh2 {[%emt 0:04:01]} f6 {[%emt 0:02:28]} 16. f4 {[%emt 0:03:40]} Bf7 {[%emt 0:00:30]} 17. Nhf3 {[%emt 0:02:14]} Rfe8 {[%emt 0:02:22]} 18. c4 {[%emt 0:11:52]} Qa6 {[%emt 0:12:18]} 1/2-1/2

[Event "M. Gvozdenovica Memorial 2019"]
[Site "Valjevo"]
[Date "2019.10.12"]
[Round "9.1"]
[White "Budisavljevic, Luka"]
[Black "Tomic, Aleksandar"]
[Result "1-0"]
[ECO "A43"]
[WhiteElo "2432"]
[BlackElo "2360"]
[Annotator "ChessBase"]
[PlyCount "67"]
[EventDate "2019.10.08"]
[EventCountry "SRB"]
[SourceTitle "playchess.com"]
[Source "ChessBase"]
[SourceQuality "1"]
[TimeControl "5400+30"]

1. d4 c5 {[%emt 0:00:00]} 2. d5 {[%emt 0:00:00]} e6 {[%emt 0:00:20]} 3. Nc3 {[%emt 0:00:00]} a6 {[%emt 0:00:32]} 4. a4 {[%emt 0:01:18]} Nf6 {[%emt 0:02:10]} 5. e4 {[%emt 0:00:15]} d6 {[%emt 0:00:13]} 6. Nf3 exd5 7. exd5 Bg4 8. h3 Bxf3 9. Qxf3 Be7 10. Bf4 O-O 11. g4 Nfd7 12. h4 Re8 13. O-O-O Bf8 14. Qg3 Ne5 15. Bd2 b5 16. f4 Ned7 17. g5 c4 18. g6 fxg6 19. h5 gxh5 20. Bh3 {[%emt 0:55:03]} Nf6 {[%emt 1:06:22]} 21. Be6+ {[%emt 0:00:31]} Kh8 {[%emt 0:00:14]} 22. f5 {[%emt 0:03:40]} Nbd7 {[%emt 0:07:24]} 23. Ne2 {[%emt 0:02:57]} Nc5 {[%emt 0:03:38]} 24. Nf4 {[%emt 0:02:39]} Nce4 {[%emt 0:01:12]} 25. Qf3 {[%emt 0:05:35]} bxa4 {[%emt 0:07:27]} 26. Ng6+ {[%emt 0:03:01]} hxg6 {[%emt 0:00:37]} 27. fxg6 {[%emt 0:00:08]} Ng3 {[%emt 0:07:31]} 28. Qxg3 {[%emt 0:00:09]} Rxe6 {[%emt 0:00:49]} 29. dxe6 {[%emt 0:01:00]} Rb8 {[%emt 0:00:12]} 30. Qg5 Kg8 {[%emt 0:03:00]} 31. Rxh5 {[%emt 0:04:07]} Qb6 {[%emt 0:00:30]} 32. Bc3 {[%emt 0:01:49]} Nxh5 {[%emt 0:00:54]} 33. Qxh5 {[%emt 0:00:09]} Qe3+ {[%emt 0:01:21]} 34. Bd2 {[%emt 0:00:06]} 1-0

[Event "M. Gvozdenovica Memorial 2019"]
[Site "Valjevo"]
[Date "2019.10.12"]
[Round "9.2"]
[White "Stojanovic, Dalibor"]
[Black "Pezelj, Novak"]
[Result "1/2-1/2"]
[ECO "B52"]
[WhiteElo "2501"]
[BlackElo "2479"]
[Annotator "ChessBase"]
[PlyCount "30"]
[EventDate "2019.10.08"]
[EventCountry "SRB"]
[SourceTitle "playchess.com"]
[Source "ChessBase"]
[SourceQuality "1"]
[TimeControl "5400+30"]

1. e4 c5 2. Nf3 d6 3. Bb5+ Bd7 {[%emt 0:01:00]} 4. Bxd7+ {[%emt 0:00:44]} Nxd7 {[%emt 0:00:22]} 5. O-O {[%emt 0:00:24]} Ngf6 {[%emt 0:00:51]} 6. Re1 {[%emt 0:00:08]} e5 {[%emt 0:00:29]} 7. d3 {[%emt 0:00:22]} Be7 {[%emt 0:00:21]} 8. Nc3 {[%emt 0:00:26]} O-O {[%emt 0:00:50]} 9. Bg5 {[%emt 0:00:03]} Ne8 {[%emt 0:01:06]} 10. Bxe7 {[%emt 0:00:05]} Qxe7 {[%emt 0:00:06]} 11. Nd2 {[%emt 0:00:03]} Nc7 {[%emt 0:00:20]} 12. Nc4 {[%emt 0:00:08]} g6 {[%emt 0:01:51]} 13. Ne3 {[%emt 0:00:06]} Nf6 {[%emt 0:01:14]} 14. a4 {[%emt 0:00:13]} b6 {[%emt 0:01:06]} 15. h3 {[%emt 0:00:05]} a6 {[%emt 0:00:06]} 1/2-1/2

[Event "M. Gvozdenovica Memorial 2019"]
[Site "Valjevo"]
[Date "2019.10.12"]
[Round "9.3"]
[White "Ratkovic, Milovan"]
[Black "Blagojevic, Dragisa"]
[Result "1/2-1/2"]
[ECO "D45"]
[WhiteElo "2416"]
[BlackElo "2500"]
[Annotator "ChessBase"]
[PlyCount "21"]
[EventDate "2019.10.08"]
[EventCountry "SRB"]
[SourceTitle "playchess.com"]
[Source "ChessBase"]
[SourceQuality "1"]
[TimeControl "5400+30"]

1. d4 d5 {[%emt 0:00:00]} 2. c4 {[%emt 0:02:11]} c6 {[%emt 0:00:00]} 3. Nc3 {[%emt 0:00:04]} Nf6 {[%emt 0:00:00]} 4. e3 {[%emt 0:00:04]} e6 {[%emt 0:00:00]} 5. Nf3 {[%emt 0:00:03]} Nbd7 {[%emt 0:00:00]} 6. Qc2 {[%emt 0:00:03]} b6 {[%emt 0:00:00]} 7. Be2 {[%emt 0:00:03]} Bb7 {[%emt 0:00:00]} 8. O-O {[%emt 0:00:06]} Be7 {[%emt 0:00:00]} 9. b3 {[%emt 0:00:04]} O-O {[%emt 0:00:02]} 10. Bb2 {[%emt 0:00:03]} Qc7 {[%emt 0:00:04]} 11. Rac1 {[%emt 0:00:04]} 1/2-1/2